bitfinex/quotes_BTCUSD_20241205
["timestamp","ask_amount","ask_price","bid_price","bid_amount"]
[1733374718099,1.52795873,103300.0,103290.0,0.2013895]
[1733374718528,1.54457804,103300.0,103290.0,0.2013895]
[1733374718952,0.03087873,103300.0,103290.0,0.2489895]
[1733374719159,0.03087873,103300.0,103290.0,0.32897605]
[1733374720053,0.03087873,103300.0,103290.0,0.33865705]
[1733374720260,0.03087873,103300.0,103290.0,0.43865705]
[1733374721551,0.0167345,103320.0,103310.0,0.1776]
[1733374721796,0.01732165,103320.0,103310.0,0.27727605]
[1733374722014,0.00058715,103320.0,103310.0,0.27727605]
[1733374724434,1.50058715,103320.0,103310.0,0.27727605]
[1733374725061,0.00058715,103320.0,103310.0,0.27727605]
[1733374726553,0.21043015,103330.0,103310.0,0.27717605]
[1733374726785,0.40405783,103330.0,103320.0,0.0999]
[1733374727908,0.40697783,103330.0,103320.0,0.0999]
[1733374729400,0.40697783,103330.0,103310.0,0.41905122]
[1733374729604,0.60054683,103330.0,103310.0,0.41905122]
[1733374729802,0.40697783,103330.0,103310.0,0.41905122]
[1733374730228,0.193573,103320.0,103310.0,0.4]
[1733374731705,0.270173,103320.0,103310.0,0.4]
[1733374732149,0.19617299,103320.0,103310.0,0.4]
[1733374732375,0.27627605,103320.0,103310.0,0.4]
[1733374732605,0.46984905,103320.0,103310.0,0.4]
[1733374733296,0.46984905,103320.0,103310.0,0.6]
[1733374733535,0.47276905,103320.0,103310.0,0.6]
[1733374733797,0.57276905,103320.0,103310.0,0.6]
[1733374734010,0.42076905,103320.0,103310.0,0.503205]
[1733374734233,0.42076905,103320.0,103310.0,0.491425]
[1733374734461,0.42076905,103320.0,103310.0,0.39463]
[1733374734700,0.30766905,103320.0,103310.0,0.0739]
[1733374734909,0.39320115,103320.0,103310.0,0.0624]
[1733374735130,0.40330356,103320.0,103310.0,0.0584]
[1733374735389,0.40330356,103320.0,103310.0,0.039041]
[1733374735627,0.33213087,103320.0,103310.0,0.000323]
[1733374735839,0.43213087,103320.0,103310.0,0.000323]
[1733374736057,0.41777146,103320.0,103310.0,0.000323]
[1733374736265,0.51777146,103320.0,103310.0,0.000323]
[1733374736481,0.22419846,103320.0,103310.0,0.000323]
[1733374736690,0.43213693,103320.0,103310.0,0.000323]
[1733374736913,0.41777146,103320.0,103310.0,0.000323]
[1733374737129,0.31777146,103320.0,103310.0,0.000323]
[1733374737341,0.33214152,103320.0,103310.0,0.000323]
[1733374738466,0.40767893,103320.0,103310.0,1e-06]
[1733374738685,0.193648,103280.0,103270.0,0.0776]
[1733374739914,0.193648,103280.0,103270.0,0.07818715]
[1733374740185,0.196568,103280.0,103270.0,0.07818715]
[1733374740850,0.00292,103280.0,103270.0,0.07818715]
[1733374741274,0.196568,103280.0,103270.0,0.07818715]
[1733374742321,0.196568,103280.0,103270.0,0.09063586]
[1733374742754,1.696568,103280.0,103270.0,0.09063586]
[1733374743408,0.196568,103280.0,103270.0,0.19031191]
[1733374743614,0.196568,103280.0,103270.0,0.23962568]
[1733374743822,0.00292,103280.0,103270.0,0.23791191]
[1733374744289,0.0200545,103280.0,103270.0,0.23791191]
[1733374744711,0.00292,103280.0,103270.0,0.78541191]
[1733374745135,0.00292,103280.0,103270.0,0.88541191]
[1733374745806,0.01686593,103300.0,103280.0,0.1271]
[1733374746026,0.01686593,103300.0,103290.0,0.77598935]
[1733374746239,1.5,103310.0,103300.0,0.0815]
[1733374746444,0.387163,103320.0,103300.0,0.18117605]
[1733374746700,0.387163,103320.0,103310.0,0.09967605]
[1733374746918,0.387163,103320.0,103300.0,0.0815]
[1733374747124,0.410163,103320.0,103310.0,0.09967605]
[1733374747277,0.603753,103320.0,103300.0,0.09394871]
[1733374747484,0.410163,103320.0,103310.0,0.09967605]
[1733374747684,0.4267425,103320.0,103300.0,0.09566186]
[1733374747890,0.2331575,103320.0,103310.0,0.1474892]
[1733374748095,0.2331575,103320.0,103310.0,0.24614171]
[1733374748300,0.0395795,103320.0,103310.0,0.24442856]
[1733374749330,0.2331525,103320.0,103310.0,0.24442856]
[1733374751208,0.2331525,103320.0,103310.0,0.22837605]
[1733374751451,0.3888676,103330.0,103310.0,0.18227605]
[1733374751663,0.20258413,103320.0,103310.0,0.18227605]
[1733374751875,0.193573,103320.0,103310.0,0.18227605]
[1733374752088,0.193592,103310.0,103290.0,0.1284]
[1733374752301,0.19361,103300.0,103290.0,0.22978943]
[1733374752536,0.19361,103300.0,103290.0,0.22807605]
[1733374753006,0.19361,103300.0,103290.0,0.1284]
[1733374753458,0.193629,103290.0,103280.0,0.2257]
[1733374753678,1.693629,103290.0,103280.0,0.32537605]
[1733374753888,1.693629,103290.0,103280.0,0.15]
[1733374755716,1.693629,103290.0,103280.0,0.1968]
[1733374756196,1.693629,103290.0,103280.0,0.15]
[1733374757282,1.693629,103290.0,103280.0,0.17265677]
[1733374757508,0.15572321,103290.0,103280.0,0.21955677]
[1733374757732,0.15572321,103290.0,103280.0,0.39623282]
[1733374757957,0.17300937,103290.0,103280.0,0.39623282]
[1733374759260,0.21661,103300.0,103280.0,0.39623282]
[1733374759677,0.023,103300.0,103290.0,0.17678964]
[1733374759891,0.23405097,103300.0,103290.0,0.18707287]
[1733374760576,0.023,103300.0,103290.0,0.18707287]
[1733374760795,0.023,103300.0,103290.0,0.23277287]
[1733374761022,0.023,103300.0,103290.0,0.23105928]
[1733374761477,0.01705998,103310.0,103290.0,0.23105928]
[1733374761687,0.01705998,103310.0,103300.0,0.00171318]
[1733374761900,0.193604,103310.0,103300.0,0.10138923]
[1733374762137,0.38949155,103320.0,103300.0,0.124046]
[1733374762378,0.193592,103310.0,103300.0,0.124046]
[1733374762591,1.693592,103310.0,103300.0,0.124046]
[1733374763675,1.693592,103310.0,103300.0,0.09967605]
[1733374764095,1.693592,103310.0,103300.0,0.10138933]
[1733374764510,1.5,103310.0,103300.0,0.10138933]
[1733374764735,1.5,103310.0,103300.0,0.18418933]
[1733374764945,1.51010212,103310.0,103300.0,0.18418933]
[1733374765146,1.51010212,103310.0,103300.0,0.25367826]
[1733374765358,1.51010212,103310.0,103300.0,0.25196498]
[1733374765778,0.01010212,103310.0,103300.0,0.25196498]
[1733374766489,0.21318339,103320.0,103300.0,0.25196498]
[1733374766490,1.5,103320.0,103300.0,0.25196498]
[1733374766692,1.5,103320.0,103310.0,0.10138915]
[1733374766907,1.693574,103320.0,103310.0,0.11134022]
[1733374767549,1.51770285,103320.0,103310.0,0.18984022]
[1733374767971,1.5,103320.0,103310.0,0.18984022]
[1733374768835,1.5,103320.0,103310.0,0.23854022]
[1733374769049,1.5,103320.0,103310.0,0.23682712]
[1733374771061,0.21219092,103330.0,103310.0,0.23682712]
[1733374771278,0.21218992,103330.0,103320.0,0.00171292]
[1733374771541,1.5,103330.0,103320.0,0.10138897]
[1733374771761,1.693554,103330.0,103320.0,0.12266498]
[1733374772187,1.71096952,103330.0,103320.0,0.12266498]
[1733374772607,1.71096952,103330.0,103320.0,0.1243779]
[1733374772814,1.71096952,103330.0,103320.0,0.12266498]
[1733374773469,0.193573,103320.0,103310.0,0.12778715]
[1733374773736,0.193573,103320.0,103310.0,0.2274632]
[1733374775526,1.693573,103320.0,103310.0,0.2274632]
[1733374776369,1.693573,103320.0,103310.0,0.00058715]
[1733374776580,1.5,103320.0,103310.0,0.00058715]
[1733374776794,1.693573,103320.0,103310.0,0.00058715]
[1733374777011,1.693573,103320.0,103310.0,0.00145445]
[1733374780238,1.693573,103320.0,103310.0,0.00067541]
[1733374781092,1.693573,103320.0,103310.0,0.14775146]
[1733374781384,0.193573,103320.0,103310.0,0.17037794]
[1733374781633,0.21271712,103330.0,103310.0,0.17037794]
[1733374781845,0.21271712,103330.0,103320.0,0.0789]
[1733374782281,0.22278994,103330.0,103320.0,0.0789]
[1733374782745,1.72278994,103330.0,103320.0,0.0789]
[1733374782963,1.51915012,103330.0,103320.0,0.18888957]
[1733374784516,1.5017346,103330.0,103320.0,0.19060251]
[1733374784919,1.5017346,103330.0,103320.0,0.18888957]
[1733374785245,1.6952886,103330.0,103320.0,0.18888957]
[1733374785471,1.5017346,103330.0,103320.0,0.19060251]
[1733374785700,1.6952886,103330.0,103320.0,0.18888957]
[1733374786154,1.6952886,103330.0,103320.0,0.17857605]
[1733374786376,1.5017346,103330.0,103320.0,0.18028899]
[1733374786591,0.3888288,103340.0,103320.0,0.17857605]
[1733374786776,0.00903384,103330.0,103320.0,0.17916857]
[1733374787023,0.0068524,103330.0,103320.0,0.17916857]
[1733374787243,0.40595525,103340.0,103320.0,0.20018004]
[1733374787451,0.59950925,103340.0,103320.0,0.20018004]
[1733374787657,0.59950325,103340.0,103320.0,0.20189297]
[1733374787871,0.40595525,103340.0,103320.0,0.20189297]
[1733374788727,0.21240725,103340.0,103330.0,0.09967605]
[1733374789004,0.01886325,103340.0,103330.0,0.10989165]
[1733374790359,0.0017358,103340.0,103330.0,0.24060448]
[1733374790596,0.0017358,103340.0,103330.0,0.27756965]
[1733374791934,0.0017358,103340.0,103330.0,0.26735405]
[1733374792152,0.0017358,103340.0,103330.0,10.22867605]
[1733374792363,0.193535,103340.0,103330.0,10.22867605]
[1733374792590,0.193535,103340.0,103330.0,10.129]
[1733374792833,0.193535,103340.0,103330.0,9.66]
[1733374794359,0.40404456,103350.0,103330.0,9.66]
[1733374795266,0.193535,103340.0,103330.0,9.66]
[1733374796551,0.40404356,103350.0,103330.0,9.66]
[1733374797019,0.193535,103340.0,103330.0,9.66]
[1733374800118,0.40404356,103350.0,103330.0,9.66]
[1733374800119,0.40404256,103350.0,103330.0,9.66]
[1733374800331,0.20257506,103340.0,103330.0,9.66]
[1733374800543,0.193535,103340.0,103330.0,9.66]
[1733374801466,0.01953499,103340.0,103330.0,9.66]
[1733374801704,0.40338256,103350.0,103330.0,9.66]
[1733374801920,0.00903983,103340.0,103330.0,9.75967605]
[1733374802166,0.03318289,103350.0,103340.0,0.0776]
[1733374802396,0.01871916,103350.0,103340.0,0.0776]
[1733374802606,1.51871916,103350.0,103340.0,0.0776]
[1733374803027,1.71223616,103350.0,103340.0,0.0776]
[1733374803474,1.24323616,103350.0,103340.0,0.0776]
[1733374804847,1.07271916,103350.0,103340.0,0.0776]
[1733374805283,1.08964629,103350.0,103340.0,0.0776]
[1733374805537,1.28316329,103350.0,103340.0,0.0776]
[1733374806635,0.23344413,103350.0,103340.0,0.0776]
[1733374807523,0.03992713,103350.0,103340.0,0.0776]
[1733374807762,0.23344413,103350.0,103340.0,0.0776]
[1733374807994,1.53992713,103350.0,103340.0,0.17727605]
[1733374808233,1.523,103350.0,103340.0,0.17727605]
[1733374809851,0.193535,103340.0,103330.0,9.7916]
[1733374810082,1.716532,103350.0,103330.0,9.742]
[1733374810083,1.910059,103350.0,103330.0,9.742]
[1733374810290,1.54012743,103350.0,103330.0,9.84167605]
[1733374810499,0.00904595,103340.0,103330.0,9.84167605]
[1733374810731,1.73364643,103350.0,103330.0,9.84167605]
[1733374810959,0.00904588,103340.0,103330.0,9.84167605]
[1733374811192,1.92717343,103350.0,103330.0,9.84167605]
[1733374811431,0.00904818,103340.0,103330.0,9.84167605]
[1733374811661,0.21064643,103350.0,103330.0,9.84167605]
[1733374811928,0.03160418,103350.0,103330.0,9.84167605]
[1733374812137,0.01712743,103350.0,103330.0,9.84167605]
[1733374812582,1.5,103340.0,103330.0,9.84167605]
[1733374814370,1.693535,103340.0,103330.0,9.6608672]
[1733374815248,1.70356783,103340.0,103330.0,9.6608672]
[1733374815990,0.65454388,103340.0,103330.0,9.6608672]
[1733374816205,0.46058979,103340.0,103330.0,5.01238122]
[1733374816392,0.539481,103340.0,103330.0,3.51258122]
[1733374816608,0.37338882,103340.0,103330.0,3.51258122]
[1733374816832,0.49646219,103340.0,103330.0,2.76268122]
[1733374817088,0.47594039,103340.0,103330.0,2.76268122]
[1733374818204,0.47594039,103340.0,103330.0,2.75718179]
[1733374821444,0.47594039,103340.0,103330.0,2.66176179]
[1733374821664,0.40161643,103340.0,103330.0,2.58434179]
[1733374821878,0.52064465,103340.0,103330.0,2.41428414]
[1733374822096,0.52063209,103340.0,103330.0,2.41428414]
[1733374822304,0.56708482,103340.0,103330.0,2.39975646]
[1733374822516,0.58575447,103340.0,103330.0,2.31302646]
[1733374822740,0.49380475,103340.0,103330.0,2.02737026]
[1733374822961,0.193629,103290.0,103280.0,0.0764676]
[1733374823885,0.193629,103290.0,103280.0,0.0008676]
[1733374824324,0.193629,103290.0,103280.0,0.00092633]
[1733374825686,0.39330505,103290.0,103280.0,0.00092633]
[1733374825925,0.49330505,103290.0,103280.0,0.00092633]
[1733374826160,0.39330505,103290.0,103280.0,0.00092633]
[1733374826582,0.22210003,103290.0,103280.0,0.00092633]
[1733374826804,0.41572903,103290.0,103280.0,0.00092633]
[1733374829227,0.41948574,103280.0,103270.0,0.1508677]
[1733374829470,0.51916179,103280.0,103270.0,0.1508677]
[1733374829716,0.14983784,103280.0,103270.0,0.1508677]
[1733374829964,0.36518358,103280.0,103270.0,0.1508677]
[1733374830627,0.193648,103280.0,103270.0,0.1508677]
[1733374831488,0.45925265,103290.0,103270.0,0.1508677]
[1733374831703,0.193648,103280.0,103270.0,0.1508677]
[1733374831914,0.21226524,103280.0,103270.0,0.1508677]
[1733374832581,0.193648,103280.0,103270.0,0.1508677]
[1733374832790,0.21618158,103280.0,103270.0,0.1508677]
[1733374833432,0.31585763,103280.0,103270.0,0.1508677]
[1733374834731,0.31585763,103280.0,103270.0,0.15086765]
[1733374835854,0.193648,103280.0,103270.0,0.15086765]
[1733374836587,0.45925265,103290.0,103270.0,0.15086765]
[1733374836811,0.193648,103280.0,103270.0,0.15086765]
[1733374837686,0.31575396,103280.0,103270.0,0.15086765]
[1733374838145,0.193648,103280.0,103270.0,0.15086765]
[1733374838371,0.343648,103280.0,103270.0,0.15086765]
[1733374838591,0.343648,103280.0,103270.0,0.23066765]
[1733374839064,0.3453834,103280.0,103270.0,0.23066765]
[1733374841475,0.1517354,103280.0,103270.0,0.23066765]
[1733374841716,0.3453834,103280.0,103270.0,0.23066765]
[1733374842133,0.3453834,103280.0,103270.0,0.15086765]
[1733374842360,0.57568485,103280.0,103270.0,0.15086765]
[1733374842579,0.193685,103260.0,103250.0,0.1301]
[1733374842808,0.34352284,103260.0,103240.0,0.0832]
[1733374843030,0.193723,103240.0,103230.0,0.0577681]
[1733374843488,0.21614313,103240.0,103230.0,0.0108681]
[1733374843733,0.36598097,103240.0,103230.0,0.0108681]
[1733374843973,0.193742,103230.0,103220.0,9.92699062]
[1733374844392,0.193742,103230.0,103220.0,9.92704933]
[1733374845235,0.29341805,103230.0,103220.0,9.88829733]
[1733374845448,0.44590305,103230.0,103220.0,9.88829733]
[1733374846313,0.49235578,103230.0,103220.0,3.79141733]
[1733374846525,0.29861378,103230.0,103220.0,3.66281524]
[1733374846969,0.514428,103230.0,103220.0,3.66281524]
[1733374847172,0.53928671,103230.0,103220.0,3.37989889]
[1733374847598,0.53928671,103230.0,103220.0,3.30239489]
[1733374847824,0.38782248,103230.0,103220.0,3.28301889]
[1733374848040,0.41210479,103230.0,103220.0,3.28301889]
[1733374848479,0.4349638,103230.0,103220.0,3.28301889]
[1733374849019,0.4349638,103230.0,103220.0,2.13183192]
[1733374849050,0.38480201,103230.0,103220.0,2.03495192]
[1733374849254,0.53696009,103230.0,103220.0,1.81950056]
[1733374849525,0.53696009,103230.0,103220.0,1.50227961]
[1733374849687,0.53696009,103230.0,103220.0,1.44115161]
[1733374849845,0.55996009,103230.0,103220.0,0.95209898]
[1733374850064,0.55996009,103230.0,103220.0,0.43183171]
[1733374850289,0.55996009,103230.0,103210.0,0.0008674]
[1733374850505,0.41606164,103220.0,103210.0,5.4e-07]
[1733374850730,0.51071675,103220.0,103210.0,5.4e-07]
[1733374850965,0.05016179,103200.0,103190.0,7.98833891]
[1733374851181,0.44263023,103200.0,103190.0,7.98833891]
[1733374851383,0.44263023,103200.0,103190.0,7.15443554]
[1733374852473,0.42030864,103200.0,103190.0,7.15443554]
[1733374853378,0.44513146,103200.0,103190.0,7.15443554]
[1733374853785,0.42030864,103200.0,103190.0,7.15443554]
[1733374854646,0.411814,103200.0,103190.0,7.15443554]
[1733374855054,0.411814,103200.0,103190.0,7.27843554]
[1733374855055,0.26197616,103200.0,103190.0,7.27843554]
[1733374855258,0.06817816,103200.0,103190.0,7.27843554]
[1733374855522,0.26197616,103200.0,103190.0,7.27843554]
[1733374855937,0.06817816,103200.0,103190.0,7.27843554]
[1733374856595,0.21872169,103210.0,103190.0,7.27843554]
[1733374856818,0.193798,103200.0,103190.0,7.27843554]
[1733374857021,0.23997695,103210.0,103190.0,7.27843554]
[1733374857336,0.17125926,103210.0,103190.0,7.42827375]
[1733374857716,0.15,103210.0,103200.0,0.17513821]
[1733374860926,0.38474207,103220.0,103200.0,0.17513821]
[1733374861136,0.48441812,103220.0,103200.0,0.17513821]
[1733374861355,0.193798,103200.0,103190.0,7.15443554]
[1733374861571,0.24394079,103210.0,103190.0,7.15443554]
[1733374861763,0.193798,103200.0,103190.0,7.15443554]
[1733374862206,0.193798,103200.0,103190.0,7.15072354]
[1733374862416,0.387573,103210.0,103190.0,7.15072354]
[1733374862653,0.31547925,103220.0,103210.0,0.082]
[1733374862871,0.50925025,103220.0,103210.0,0.082]
[1733374863140,0.193779,103210.0,103200.0,0.0008683]
[1733374863374,0.29345505,103210.0,103200.0,0.0008683]
[1733374864741,0.31645505,103210.0,103200.0,0.0008683]
[1733374864953,0.33782131,103210.0,103200.0,0.0008683]
[1733374865391,0.33782131,103210.0,103190.0,7.15072354]
[1733374865392,0.24395979,103200.0,103190.0,7.15072354]
[1733374865629,0.44211487,103200.0,103190.0,7.15072354]
[1733374865836,0.36455736,103200.0,103190.0,7.15072354]
[1733374866538,0.12059757,103200.0,103190.0,7.15072354]
[1733374866758,0.31439557,103200.0,103190.0,7.15072354]
[1733374866996,0.29347405,103200.0,103190.0,7.15072354]
[1733374869949,0.31764285,103200.0,103190.0,7.15072354]
[1733374870420,0.4118158,103200.0,103190.0,7.15072354]
[1733374871110,0.33899422,103200.0,103190.0,7.15072354]
[1733374871328,0.31482542,103200.0,103190.0,7.15072354]
[1733374871556,0.02135137,103200.0,103190.0,7.19832354]
[1733374871784,0.023,103210.0,103200.0,0.333239]
[1733374872013,0.023,103210.0,103200.0,0.42237605]
[1733374874051,0.023,103210.0,103200.0,0.22237605]
[1733374874273,0.023,103210.0,103200.0,0.32237605]
[1733374874507,0.023,103210.0,103200.0,0.1227]
[1733374874727,0.216779,103210.0,103200.0,0.1227]
[1733374876115,0.023,103210.0,103200.0,0.1227]
[1733374876340,0.2772099,103210.0,103200.0,0.1227]
[1733374876560,0.387534,103220.0,103200.0,0.1227]
[1733374876787,0.193779,103210.0,103200.0,0.1227]
[1733374878639,0.02062186,103230.0,103210.0,0.1]
[1733374878865,0.02062186,103230.0,103210.0,0.29985193]
[1733374879298,1.5,103220.0,103210.0,0.29985193]
[1733374881619,0.21436786,103230.0,103210.0,0.29985193]
[1733374881851,0.02062186,103230.0,103210.0,0.29985193]
[1733374882079,0.02062186,103230.0,103220.0,0.37477605]
[1733374882288,0.0017364,103230.0,103220.0,0.42037605]
[1733374882984,0.00903136,103250.0,103240.0,0.2]
[1733374883226,0.21270941,103260.0,103240.0,0.42627605]
[1733374883438,0.02964583,103260.0,103240.0,0.44627605]
[1733374884104,0.01965277,103260.0,103240.0,0.44627605]
[1733374884344,0.00902305,103270.0,103250.0,0.29967605]
[1733374884593,0.02074981,103280.0,103270.0,0.1266]
[1733374884849,0.21439781,103280.0,103270.0,0.1266]
[1733374885078,0.22423062,103280.0,103270.0,0.1266]
[1733374885550,0.22440686,103280.0,103270.0,0.1266]
[1733374886243,0.22440686,103280.0,103240.0,0.6675]
[1733374886244,0.387341,103270.0,103250.0,0.1268]
[1733374886696,0.193685,103260.0,103250.0,0.1268]
[1733374886945,0.387416,103250.0,103230.0,0.1272]
[1733374887635,0.193723,103240.0,103230.0,0.1272]
[1733374888287,0.48710105,103250.0,103230.0,0.1272]
[1733374888516,0.48710105,103250.0,103230.0,0.13992]
[1733374888943,0.68082005,103250.0,103230.0,0.1272]
[1733374889180,0.48710105,103250.0,103230.0,0.1272]
[1733374889393,0.1937,103260.0,103230.0,0.1272]
[1733374889602,0.2027101,103250.0,103230.0,0.1272]
[1733374889834,0.193705,103250.0,103230.0,0.1272]
[1733374890537,0.48707405,103260.0,103230.0,0.1272]
[1733374890758,0.193699,103260.0,103230.0,0.32687605]
[1733374891673,0.193697,103260.0,103230.0,0.32687605]
[1733374892117,0.387395,103260.0,103230.0,0.32687605]
[1733374892329,0.40647389,103260.0,103230.0,0.32687605]
[1733374892557,0.193697,103260.0,103230.0,0.42687605]
[1733374893044,0.387394,103260.0,103230.0,0.42687605]
[1733374893277,0.3875302,103270.0,103230.0,0.42687605]
[1733374893503,3.4,103250.0,103230.0,0.42687605]
[1733374894184,0.48720625,103270.0,103230.0,0.42687605]
[1733374894408,0.193687,103260.0,103230.0,0.42687605]
[1733374894616,0.50695667,103270.0,103230.0,0.42687605]
[1733374894763,0.40728062,103270.0,103240.0,0.2]
[1733374895357,0.40728062,103270.0,103250.0,0.077]
[1733374896006,0.01992562,103270.0,103260.0,0.2494]
[1733374896215,0.0001762,103270.0,103260.0,0.2494]
[1733374896675,0.193642,103290.0,103260.0,0.2494]
[1733374896912,0.40694771,103290.0,103260.0,0.2495762]
[1733374897567,0.21330471,103290.0,103260.0,0.2495762]
[1733374897795,1.5,103270.0,103260.0,0.2495762]
[1733374898031,1.5,103270.0,103260.0,0.33195225]
[1733374898248,1.5,103270.0,103260.0,0.43195225]
[1733374899546,1.5,103270.0,103260.0,0.33195225]
[1733374899795,1.5,103270.0,103260.0,0.43195225]
[1733374900965,0.01966271,103290.0,103280.0,0.1]
[1733374901181,0.3889362,103310.0,103280.0,0.2291]
[1733374901393,0.193611,103300.0,103280.0,0.2291]
[1733374901612,0.193625,103300.0,103280.0,0.2291]
[1733374902033,0.387251,103300.0,103280.0,0.2291]
[1733374902272,0.193629,103290.0,103280.0,0.2291]
[1733374902481,0.387251,103300.0,103280.0,0.2291]
[1733374902722,0.38725,103300.0,103280.0,0.2291]
[1733374902931,0.537258,103290.0,103270.0,0.082]
[1733374903140,0.193667,103270.0,103260.0,0.0452762]
[1733374903593,0.193667,103270.0,103260.0,0.1452762]
[1733374904742,0.193667,103270.0,103260.0,0.0001762]
[1733374905002,0.44330705,103290.0,103270.0,0.1237]
[1733374905003,0.15,103290.0,103270.0,0.1237]
[1733374905225,0.15,103290.0,103280.0,0.42508964]
[1733374905438,0.02061747,103310.0,103300.0,0.2]
[1733374905663,0.02061747,103310.0,103300.0,0.44337605]
[1733374905877,0.02061747,103310.0,103300.0,0.42337605]
[1733374906527,0.193575,103320.0,103300.0,0.42337605]
[1733374906739,0.00017614,103310.0,103300.0,0.42337605]
[1733374907236,0.00017614,103310.0,103300.0,0.32337605]
[1733374907461,0.00017614,103310.0,103300.0,0.42337605]
[1733374907673,1.50017614,103310.0,103300.0,0.42337605]
[1733374909218,1.771571,103310.0,103280.0,0.3269]
[1733374909435,0.193623,103300.0,103280.0,0.42657605]
[1733374909679,0.387246,103300.0,103280.0,0.42657605]
[1733374909922,0.193623,103300.0,103290.0,0.1]
[1733374910579,0.387246,103300.0,103280.0,0.3269]
[1733374910797,0.387247,103300.0,103280.0,0.3269]
[1733374911009,0.4473141,103300.0,103280.0,0.3269]
[1733374911225,0.387247,103300.0,103280.0,0.3269]
[1733374911444,0.193629,103290.0,103280.0,0.3269]
[1733374911654,0.387247,103300.0,103280.0,0.3269]
[1733374912118,0.40703404,103310.0,103280.0,0.42657605]
[1733374912330,0.387236,103300.0,103280.0,0.2269]
[1733374912539,0.193629,103290.0,103270.0,0.1]
[1733374912974,0.387272,103290.0,103270.0,0.1]
[1733374913249,0.193648,103280.0,103270.0,0.1]
[1733374913508,0.387309,103280.0,103240.0,0.605612]
[1733374913754,0.193648,103280.0,103250.0,0.10139009]
[1733374914009,0.387311,103280.0,103260.0,0.06010468]
[1733374914220,0.387311,103280.0,103260.0,0.09967605]
[1733374914487,0.193667,103270.0,103250.0,0.06010468]
[1733374914739,0.193667,103270.0,103250.0,0.15978073]
[1733374914952,0.193667,103270.0,103260.0,0.06010468]
[1733374915616,0.193667,103270.0,103250.0,0.15978073]
[1733374915829,0.193667,103270.0,103260.0,0.06028088]
[1733374916060,0.38731,103280.0,103260.0,0.06028088]
[1733374916275,0.193643,103290.0,103270.0,0.06010468]
[1733374916496,0.21328699,103290.0,103270.0,0.14280468]
[1733374916684,0.387287,103290.0,103270.0,0.14280468]
[1733374917154,0.387245,103300.0,103280.0,0.06010468]
[1733374917380,0.580873,103300.0,103280.0,0.07704899]
[1733374917605,0.387243,103300.0,103280.0,0.07704899]
[1733374917814,1.5,103290.0,103280.0,0.17672504]
[1733374920330,1.5,103290.0,103280.0,0.15978073]
[1733374920809,1.5,103290.0,103280.0,0.16149441]
[1733374921030,0.193667,103270.0,103260.0,0.06114828]
[1733374921248,0.387322,103280.0,103260.0,0.06114828]
[1733374921464,0.193667,103270.0,103260.0,0.06114828]
[1733374921674,0.387322,103280.0,103260.0,0.06114828]
[1733374921887,0.03989532,103300.0,103270.0,0.15978073]
[1733374921888,0.193612,103300.0,103270.0,0.15978073]
[1733374922144,0.20265603,103290.0,103270.0,0.06010468]
[1733374922385,0.20266303,103280.0,103270.0,0.06010468]
[1733374922596,0.387314,103280.0,103270.0,0.06010468]
[1733374923245,0.387314,103280.0,103260.0,0.06114828]
[1733374923246,0.193667,103270.0,103260.0,0.06114828]
[1733374924405,0.68064905,103280.0,103260.0,0.06114828]
[1733374924633,0.193667,103270.0,103260.0,0.06114828]
[1733374926576,0.48698405,103280.0,103260.0,0.06114828]
[1733374927240,0.193667,103270.0,103260.0,0.06114828]
[1733374927713,0.193667,103270.0,103260.0,0.0010436]
[1733374927937,0.46140816,103270.0,103260.0,0.0010436]
[1733374928163,0.39334305,103270.0,103260.0,0.0010436]
[1733374928387,0.55779271,103270.0,103260.0,0.0010436]
[1733374928622,0.62134305,103270.0,103260.0,0.0010436]
[1733374930046,0.54434305,103270.0,103260.0,0.0010436]
[1733374930307,0.74226227,103270.0,103260.0,0.0010436]
[1733374930515,0.64226227,103270.0,103260.0,0.0010436]
[1733374930736,0.64434305,103270.0,103230.0,0.0132217]
[1733374930925,0.193704,103250.0,103230.0,0.11289775]
[1733374931622,0.193715,103250.0,103230.0,0.11289775]
[1733374931876,0.387433,103250.0,103230.0,0.11289775]
[1733374932825,0.38743,103250.0,103230.0,0.12889753]
[1733374933277,0.17317607,103270.0,103240.0,0.09967605]
[1733374933492,0.17317607,103270.0,103250.0,0.0451]
[1733374933731,0.17317607,103270.0,103260.0,0.09967605]
[1733374933955,0.17317607,103270.0,103260.0,0.18137605]
[1733374934180,0.17317607,103270.0,103260.0,0.19831627]
[1733374936040,0.17317607,103270.0,103260.0,0.26782019]
[1733374936293,0.17317607,103270.0,103260.0,0.1982027]
[1733374936535,0.01909194,103280.0,103260.0,0.1982027]
[1733374936737,0.1953698,103290.0,103260.0,0.20009266]
[1733374936975,0.01001449,103270.0,103260.0,0.20009266]
[1733374939510,0.01001449,103270.0,103260.0,0.19837877]
[1733374939720,0.01001449,103270.0,103260.0,0.18143855]
[1733374939942,0.01001449,103270.0,103260.0,0.09973855]
[1733374941063,0.01001449,103270.0,103260.0,0.00017607]
[1733374941291,0.20368149,103270.0,103260.0,0.00017607]
[1733374941749,0.193667,103270.0,103260.0,0.00017607]
[1733374942880,0.2517649,103270.0,103260.0,0.00017607]
[1733374943321,0.37184305,103270.0,103260.0,0.00017607]
[1733374943535,0.48629514,103270.0,103260.0,0.00104387]
[1733374943747,0.47184305,103270.0,103260.0,0.00104387]
[1733374944867,0.48921134,103270.0,103260.0,0.00104387]
[1733374945998,0.21103529,103270.0,103260.0,0.00104387]
[1733374946678,0.01736829,103270.0,103260.0,0.00104387]
[1733374946898,0.22006337,103270.0,103260.0,0.00104387]
[1733374947114,0.193667,103270.0,103260.0,0.00104387]
[1733374947784,0.03366292,103280.0,103260.0,0.00104387]
[1733374948016,0.22189356,103280.0,103260.0,0.00104387]
[1733374948241,1.5,103270.0,103260.0,0.08294387]
[1733374948917,1.5,103270.0,103260.0,0.00104387]
[1733374951565,0.40652533,103280.0,103260.0,0.00104387]
[1733374952213,0.01921833,103280.0,103260.0,0.00104387]
[1733374952435,0.02825336,103280.0,103260.0,0.07614387]
[1733374952659,1.5,103270.0,103260.0,0.09515776]
[1733374954014,1.5,103270.0,103260.0,0.07614387]
[1733374955396,1.5017358,103270.0,103260.0,0.07614387]
[1733374956506,0.0017358,103270.0,103260.0,0.07614387]
[1733374957390,0.0017358,103270.0,103260.0,0.00104387]
[1733374957609,1.5017358,103270.0,103260.0,0.00104387]
[1733374958316,1.5017358,103270.0,103240.0,0.135596]
[1733374958533,1.50191187,103270.0,103250.0,0.0988837]